bitfinex-derivatives/quotes_BTCF0:USTF0_20250121
["timestamp","ask_amount","ask_price","bid_price","bid_amount"]
[1737451325217,0.11562099,102430.0,102420.0,0.171643]
[1737451326930,0.26085011,102430.0,102420.0,0.08077828]
[1737451328030,0.26085011,102430.0,102420.0,0.0655]
[1737451328427,0.048874,102420.0,102410.0,0.3608]
[1737451328730,0.31778438,102420.0,102410.0,0.3608]
[1737451329127,0.31778438,102420.0,102410.0,0.37607738]
[1737451329331,0.31778438,102420.0,102410.0,0.01527738]
[1737451329530,0.67858438,102420.0,102410.0,0.01527738]
[1737451329730,0.74278438,102420.0,102410.0,0.01527738]
[1737451331132,0.67612919,102420.0,102410.0,0.01527738]
[1737451331325,0.25112919,102420.0,102410.0,0.01527738]
[1737451331631,0.048879,102410.0,102400.0,0.578084]
[1737451331930,0.11553419,102410.0,102400.0,0.578084]
[1737451332530,0.11553419,102410.0,102400.0,0.5292]
[1737451333128,0.11553419,102410.0,102400.0,0.5312]
[1737451334031,0.048879,102410.0,102400.0,0.5312]
[1737451334341,0.0098449,102430.0,102400.0,0.64773919]
[1737451334526,9.68e-05,102430.0,102420.0,0.83712919]
[1737451334836,0.14522912,102450.0,102440.0,0.048864]
[1737451335136,0.17488027,102460.0,102450.0,0.04886]
[1737451335332,0.17488027,102460.0,102450.0,0.40966]
[1737451335736,0.17496857,102460.0,102450.0,0.50727335]
[1737451335938,0.22382357,102460.0,102450.0,0.50727335]
[1737451338228,0.22382357,102460.0,102450.0,0.57357335]
[1737451338433,0.17496857,102460.0,102450.0,0.57357335]
[1737451338645,0.25286971,102470.0,102460.0,0.048855]
[1737451338646,0.20401771,102470.0,102460.0,0.048855]
[1737451338941,0.20401771,102470.0,102460.0,0.53452198]
[1737451339139,0.2331631,102480.0,102470.0,0.04885]
[1737451339442,0.40687508,102480.0,102470.0,0.3608]
[1737451339642,0.53407508,102480.0,102470.0,0.3608]
[1737451339844,0.176045,102480.0,102470.0,0.40965]
[1737451340337,0.048845,102480.0,102470.0,0.40965]
[1737451343737,0.048845,102480.0,102470.0,0.3608]
[1737451345241,0.114245,102480.0,102470.0,0.3608]
[1737451346447,0.114245,102480.0,102470.0,0.40965]
[1737451346647,0.114245,102480.0,102470.0,0.3608]
[1737451346852,0.12376408,102480.0,102470.0,0.3608]
[1737451351250,0.114245,102480.0,102470.0,0.40965]
[1737451352647,0.048845,102480.0,102470.0,0.40965]
[1737451353054,0.06486435,102490.0,102470.0,0.63210175]
[1737451353253,0.112241,102490.0,102480.0,0.53451198]
[1737451353452,0.112241,102490.0,102480.0,0.478145]
[1737451359063,0.112241,102490.0,102480.0,0.54469995]
[1737451359557,0.112241,102490.0,102480.0,0.59669995]
[1737451360750,0.112241,102490.0,102480.0,0.54469995]
[1737451362369,0.048841,102490.0,102480.0,0.54469995]
[1737451363561,0.176137,102500.0,102490.0,0.048841]
[1737451363760,0.176137,102500.0,102490.0,0.47619595]
[1737451364162,0.176137,102500.0,102490.0,0.409641]
[1737451364464,0.176137,102500.0,102490.0,0.3608]
[1737451366765,0.176137,102500.0,102490.0,0.409641]
[1737451368267,0.176137,102500.0,102490.0,0.44383329]
[1737451368769,0.176137,102500.0,102490.0,0.409641]
[1737451368955,0.24269195,102500.0,102490.0,0.3608]
[1737451369159,0.048841,102490.0,102480.0,0.3608]
[1737451369362,0.115541,102490.0,102480.0,0.65022657]
[1737451369968,0.115541,102490.0,102480.0,0.66549292]
[1737451370171,0.115541,102490.0,102480.0,0.66549308]
[1737451371069,0.115541,102490.0,102480.0,0.71433808]
[1737451372467,0.115541,102490.0,102480.0,0.66549308]
[1737451372870,0.115541,102490.0,102480.0,0.65022657]
[1737451373372,0.115541,102490.0,102480.0,0.59392055]
[1737451373764,0.115541,102490.0,102480.0,0.60918687]
[1737451374471,0.49190462,102490.0,102480.0,8.7e-07]
[1737451374672,0.04885,102470.0,102460.0,0.71140094]
[1737451374871,0.11540495,102470.0,102460.0,0.55187283]
[1737451375071,0.47620495,102470.0,102460.0,0.55187283]
[1737451376665,0.47620495,102470.0,102440.0,0.42909528]
[1737451376666,0.04886,102450.0,102440.0,0.42909528]
[1737451376862,0.04886,102450.0,102440.0,0.42857528]
[1737451377372,0.1819699,102450.0,102440.0,0.36091128]
[1737451377570,0.11541495,102450.0,102440.0,0.36091128]
[1737451377772,0.17941495,102450.0,102440.0,0.36091128]
[1737451378277,0.04886,102450.0,102440.0,0.36091128]
[1737451378467,0.04886,102450.0,102440.0,0.40977528]
[1737451380570,0.064,102470.0,102440.0,0.57394358]
[1737451380771,0.048853,102470.0,102460.0,0.409655]
[1737451381276,0.22315044,102470.0,102460.0,0.472655]
[1737451381571,0.28970539,102470.0,102460.0,0.472655]
[1737451382164,0.22315044,102470.0,102460.0,0.472655]
[1737451382370,0.22315044,102470.0,102460.0,0.537555]
[1737451383671,0.17429744,102470.0,102460.0,0.76029451]
[1737451384077,0.17429744,102470.0,102460.0,0.71754572]
[1737451384576,0.17429744,102470.0,102460.0,0.68334388]
[1737451384880,0.26120889,102470.0,102460.0,0.6351493]
[1737451385176,0.13638424,102470.0,102460.0,0.54747389]
[1737451386374,0.26120889,102470.0,102460.0,0.4238]
[1737451386684,0.32840889,102470.0,102460.0,0.063]
[1737451386868,0.048855,102460.0,102450.0,0.4247]
[1737451387177,0.23787965,102460.0,102450.0,0.4247]
[1737451387374,0.113055,102460.0,102450.0,0.47356]
[1737451387774,0.113055,102460.0,102450.0,0.4247]
[1737451387976,0.113055,102460.0,102450.0,0.47356]
[1737451391579,0.113055,102460.0,102450.0,0.4247]
[1737451392475,0.113055,102460.0,102450.0,0.47356]
[1737451392874,0.20058924,102460.0,102450.0,0.47356]
[1737451394279,0.21050492,102460.0,102450.0,0.47356]
[1737451395076,0.33532957,102460.0,102450.0,0.4247]
[1737451395378,0.33532957,102460.0,102450.0,0.3608]
[1737451395583,0.04886,102450.0,102440.0,0.00011128]
[1737451395777,0.17368465,102450.0,102440.0,0.00011128]
[1737451395970,0.04886,102450.0,102440.0,0.36091128]
[1737451396979,0.04886,102450.0,102440.0,0.40977528]
[1737451397681,0.16560029,102460.0,102450.0,0.04886]
[1737451397879,0.16560029,102460.0,102450.0,0.53156]
[1737451400281,0.11674329,102460.0,102450.0,0.62916382]
[1737451400585,0.11674329,102460.0,102450.0,0.78819371]
[1737451400786,0.01954329,102460.0,102450.0,0.78819056]
[1737451401180,0.1458904,102460.0,102450.0,0.83094591]
[1737451401688,0.048851,102470.0,102460.0,0.048855]
[1737451401880,0.048851,102470.0,102460.0,0.50635709]
[1737451402281,0.048851,102470.0,102460.0,0.60396091]
[1737451402901,0.17367565,102470.0,102460.0,0.472155]
[1737451403086,0.17367565,102470.0,102460.0,0.44385534]
[1737451403385,0.23477565,102470.0,102460.0,0.44385749]
[1737451403579,0.109951,102470.0,102460.0,0.44385749]
[1737451403779,0.23477565,102470.0,102460.0,0.3608]
[1737451403988,0.29337565,102470.0,102460.0,0.3608]
[1737451404689,0.38103651,102470.0,102460.0,0.3608]
[1737451405692,0.32281228,102470.0,102460.0,0.3608]
[1737451407684,0.55657459,102470.0,102460.0,0.3608]
[1737451408389,0.56638534,102470.0,102460.0,0.3608]
[1737451409091,0.048855,102460.0,102450.0,0.3608]
[1737451409294,0.17835542,102460.0,102440.0,0.75400417]
[1737451409494,0.04886,102450.0,102440.0,0.83649553]
[1737451409996,0.04886,102450.0,102440.0,0.79374018]
[1737451410495,0.04886,102450.0,102440.0,0.75953366]
[1737451411395,0.04886,102450.0,102440.0,0.46765874]
[1737451413196,0.04886,102450.0,102440.0,0.4193739]
[1737451413885,0.04886,102450.0,102440.0,0.46767618]
[1737451414813,0.11546042,102450.0,102440.0,0.40921356]
[1737451415005,0.11546042,102450.0,102440.0,0.36091128]
[1737451415221,0.11546042,102450.0,102440.0,0.53613787]
[1737451415417,0.11546042,102450.0,102440.0,0.17533787]
[1737451415609,0.18206084,102450.0,102440.0,0.17533787]
[1737451415817,0.11546042,102450.0,102440.0,0.17533787]
[1737451417029,0.54286084,102450.0,102440.0,0.17533787]
[1737451417427,0.55270556,102450.0,102440.0,0.17533787]
[1737451417814,0.048865,102440.0,102430.0,0.29187492]
[1737451418018,0.048865,102440.0,102430.0,0.2642692]
[1737451418019,0.60256542,102440.0,102430.0,0.2642692]
[1737451418215,0.90256542,102440.0,102420.0,0.34994915]
[1737451418415,0.11546942,102430.0,102420.0,0.34994915]
[1737451418810,0.11555946,102430.0,102420.0,0.34994915]
[1737451419221,0.048874,102420.0,102410.0,0.34994915]
[1737451419421,0.11547442,102420.0,102410.0,0.34994915]
[1737451422116,0.18207484,102420.0,102410.0,0.34994915]
[1737451422319,0.54287484,102420.0,102410.0,0.34994915]
[1737451422716,0.048879,102410.0,102400.0,0.881528]
[1737451422916,0.60297942,102410.0,102400.0,0.881528]
[1737451423323,0.60297942,102410.0,102400.0,0.89680867]
[1737451423723,0.60297942,102410.0,102400.0,0.11528067]
[1737451424324,0.24217942,102410.0,102400.0,0.11528067]
[1737451424526,0.19499141,102420.0,102410.0,0.048879]
[1737451424739,0.19499141,102420.0,102410.0,0.4248]
[1737451425022,0.26159183,102420.0,102410.0,0.064]
[1737451425338,0.32819225,102420.0,102410.0,0.064]
[1737451425519,0.26159183,102420.0,102410.0,0.064]
[1737451427721,0.1155556,102420.0,102410.0,0.064]
[1737451430139,0.4763556,102420.0,102410.0,0.064]
[1737451430930,0.048879,102410.0,102400.0,0.2193]
[1737451431228,0.048888,102390.0,102380.0,0.3608]
[1737451431435,0.11548842,102390.0,102380.0,0.4891]
[1737451431735,0.048888,102390.0,102380.0,0.50438131]
[1737451432930,0.048888,102390.0,102380.0,0.4891]
[1737451434835,0.11548842,102390.0,102380.0,0.4891]
[1737451437035,0.048888,102390.0,102380.0,0.4891]
[1737451437236,0.13620277,102400.0,102390.0,0.048888]
[1737451437438,0.13620277,102400.0,102390.0,0.47628842]
[1737451437640,0.048888,102390.0,102380.0,0.70226197]
[1737451437935,0.048888,102390.0,102380.0,0.63566155]
[1737451439131,0.08731677,102400.0,102380.0,0.70226197]
[1737451439337,0.13620177,102400.0,102390.0,0.47628842]
[1737451439542,0.13620177,102400.0,102390.0,0.409688]
[1737451439842,0.048888,102390.0,102380.0,0.63566255]
[1737451440031,0.048888,102390.0,102380.0,0.58677055]
[1737451440238,0.048888,102390.0,102380.0,0.63566355]
[1737451440841,0.048888,102390.0,102380.0,0.58677055]
[1737451443338,0.048888,102390.0,102380.0,0.63566355]
[1737451444737,0.13620477,102390.0,102380.0,0.63566355]
[1737451445047,0.13620477,102390.0,102380.0,0.537993]
[1737451447838,0.048888,102390.0,102380.0,0.537993]
[1737451448144,0.11548842,102390.0,102380.0,0.4891]
[1737451448340,0.47628842,102390.0,102380.0,0.1283]
[1737451448649,0.47628842,102390.0,102380.0,0.14358182]
[1737451449043,0.47628842,102390.0,102380.0,0.15886405]
[1737451449544,0.47628842,102390.0,102380.0,0.14358182]
[1737451450644,0.409688,102390.0,102380.0,0.14358182]
[1737451451845,0.048888,102390.0,102380.0,0.50438182]
[1737451452142,0.048888,102390.0,102380.0,0.55327482]
[1737451452340,0.19492423,102390.0,102380.0,0.55327482]
[1737451452538,0.14603623,102390.0,102380.0,0.65094537]
[1737451452740,0.14603623,102390.0,102380.0,0.71754579]
[1737451452938,0.19492423,102390.0,102380.0,0.65094537]
[1737451453139,0.19492423,102390.0,102380.0,0.55327482]
[1737451454240,0.19492423,102390.0,102380.0,0.55327214]
[1737451455446,0.19492423,102390.0,102380.0,0.60154869]
[1737451456048,0.14603623,102390.0,102380.0,0.76581966]
[1737451456344,0.14603623,102390.0,102380.0,0.80004455]
[1737451456739,0.17532173,102400.0,102390.0,0.048888]
[1737451456942,0.17532173,102400.0,102390.0,0.60644453]
[1737451456943,0.02279637,102400.0,102390.0,0.60644453]
[1737451457139,6.828e-05,102410.0,102390.0,0.574069]
[1737451457345,6.828e-05,102410.0,102400.0,0.53798442]
[1737451457647,0.04894728,102410.0,102400.0,0.61375904]
[1737451457942,0.04894728,102410.0,102400.0,0.54715862]
[1737451458147,0.04894728,102410.0,102400.0,0.71141529]
[1737451458344,0.04894728,102410.0,102400.0,0.64481487]
[1737451458845,0.04894728,102410.0,102400.0,0.63259409]
[1737451459040,6.828e-05,102410.0,102400.0,0.69919451]
[1737451459639,6.828e-05,102410.0,102400.0,0.7761817]
[1737451459840,0.097743,102430.0,102420.0,0.048874]
[1737451460037,0.04887,102430.0,102420.0,0.42494998]
[1737451460435,0.04887,102430.0,102420.0,0.48804998]
[1737451460951,0.0489409,102430.0,102420.0,0.48804998]
[1737451461748,0.11554132,102430.0,102420.0,0.37607598]
[1737451461946,0.23504132,102430.0,102420.0,0.37607598]
[1737451462241,0.23504132,102430.0,102420.0,0.01527518]
[1737451462452,0.048874,102420.0,102410.0,0.3608]
[1737451462740,0.048874,102420.0,102400.0,0.531283]
[1737451462741,0.048879,102410.0,102400.0,0.471383]
[1737451462944,0.11547942,102410.0,102400.0,1.04392905]
[1737451463142,0.11547942,102410.0,102400.0,0.99573557]
[1737451463545,0.048879,102410.0,102400.0,0.99573557]
[1737451463738,0.11547942,102410.0,102400.0,0.99573557]
[1737451463944,0.11547942,102410.0,102400.0,0.94685257]
[1737451464945,0.11547942,102410.0,102400.0,0.88515257]
[1737451465141,0.11555032,102410.0,102400.0,0.88515257]
[1737451465343,0.17655032,102410.0,102400.0,0.88515257]
[1737451465543,0.17655032,102410.0,102400.0,0.52435257]
[1737451465745,0.53735032,102410.0,102390.0,0.34921042]
[1737451465942,0.60398442,102400.0,102380.0,0.3608]
[1737451466152,0.11548842,102390.0,102380.0,0.59403872]
[1737451466855,0.11548842,102390.0,102380.0,0.23323872]
[1737451468053,0.11548842,102390.0,102380.0,0.59403872]
[1737451469047,0.11548842,102390.0,102380.0,0.23323872]
[1737451469351,0.54295974,102390.0,102380.0,0.23323872]
[1737451469849,0.54295974,102390.0,102380.0,0.2607487]
[1737451470552,0.54295974,102390.0,102380.0,0.02750998]
[1737451470748,0.54295974,102390.0,102380.0,0.01528323]
[1737451470954,0.54295974,102390.0,102370.0,0.00012469]
[1737451471245,0.17709342,102380.0,102370.0,0.00012469]
[1737451471450,0.17716432,102380.0,102370.0,0.00012469]
[1737451472350,0.53796432,102380.0,102370.0,0.00012469]
[1737451473052,0.048907,102350.0,102340.0,0.469211]
[1737451473346,0.11550742,102350.0,102340.0,0.108411]
[1737451473947,0.048912,102340.0,102320.0,0.31272337]
[1737451474145,0.048912,102340.0,102310.0,0.37325399]
[1737451474146,0.048922,102320.0,102310.0,0.37325399]
[1737451474350,0.47632242,102320.0,102310.0,0.37325399]
[1737451474646,0.47632242,102320.0,102310.0,0.01529345]
[1737451474850,0.47632242,102320.0,102310.0,0.02752835]
[1737451475351,1.97641853,102320.0,102310.0,0.05199805]
[1737451475653,2.03510246,102320.0,102310.0,0.05199805]
[1737451475949,2.03510246,102320.0,102310.0,0.01529345]
[1737451478146,2.04501273,102320.0,102300.0,0.00380385]
[1737451478456,0.53501135,102310.0,102300.0,0.01909834]
[1737451478846,0.53501135,102310.0,102290.0,0.1202]
[1737451478847,0.048931,102300.0,102290.0,0.1202]
[1737451479041,0.048946,102270.0,102260.0,0.40975]
[1737451479250,0.048946,102270.0,102260.0,0.47305]
[1737451479959,0.04906218,102270.0,102260.0,0.49752652]
[1737451480350,0.04906218,102270.0,102260.0,0.14837652]
[1737451480554,0.17434653,102270.0,102260.0,0.14837652]
[1737451481142,0.17434653,102270.0,102260.0,0.02447652]
[1737451481343,0.048955,102250.0,102240.0,0.00157084]
[1737451481553,0.048955,102250.0,102240.0,0.36237084]
[1737451481854,0.048955,102250.0,102240.0,0.41133084]
[1737451482953,0.048955,102250.0,102240.0,0.20575398]
[1737451483147,0.048955,102250.0,102240.0,0.22105492]
[1737451483548,0.049955,102250.0,102240.0,0.22105492]
[1737451484155,0.050955,102250.0,102240.0,0.22205492]
[1737451484549,0.22489379,102250.0,102240.0,0.22205492]
[1737451484754,0.58569379,102250.0,102230.0,0.53554099]
[1737451485150,0.17593879,102250.0,102240.0,0.40976]
[1737451485551,0.07923879,102250.0,102240.0,0.40976]
[1737451485754,0.00011618,102270.0,102260.0,0.04895]
[1737451486063,0.0014675,102290.0,102270.0,0.048946]
[1737451486244,0.0014675,102290.0,102280.0,0.048941]
[1737451486956,0.0015679,102290.0,102280.0,0.048941]
[1737451487151,0.0015679,102290.0,102270.0,0.31179831]
[1737451487345,0.0001004,102290.0,102280.0,0.048941]
[1737451487670,0.73794594,102300.0,102290.0,0.048936]
[1737451487671,0.25186159,102300.0,102290.0,0.048936]
[1737451488659,0.25194444,102300.0,102290.0,0.048936]
[1737451489256,0.73902879,102300.0,102290.0,0.109936]
[1737451489557,0.5361002,102300.0,102290.0,0.061]
[1737451490258,0.5361002,102300.0,102290.0,0.07629392]
[1737451491960,0.1753002,102300.0,102290.0,0.07629392]
[1737451492455,0.00108285,102300.0,102290.0,0.70907075]
[1737451492761,0.84641589,102320.0,102310.0,0.048927]
[1737451492964,0.84641589,102320.0,102310.0,0.06422092]
[1737451494054,0.84641589,102320.0,102310.0,0.0642183]
[1737451494055,0.48661589,102320.0,102310.0,0.0642183]
[1737451494463,0.48661589,102320.0,102310.0,0.1240183]
[1737451495069,0.48761589,102320.0,102310.0,0.1240183]
[1737451495561,0.48761589,102320.0,102300.0,0.53501535]
[1737451495562,0.050925,102320.0,102300.0,0.45353331]
[1737451495768,0.050925,102320.0,102310.0,0.0625]
[1737451495955,0.050925,102320.0,102310.0,0.111427]
[1737451496154,0.050925,102320.0,102310.0,0.0625]
[1737451496462,0.53700935,102320.0,102310.0,0.0625]
[1737451496663,0.53600935,102320.0,102310.0,0.0625]
[1737451496854,0.53700935,102320.0,102310.0,0.0625]
[1737451497354,0.73893794,102320.0,102310.0,0.0625]
[1737451497559,2.23893794,102320.0,102290.0,0.23966332]
[1737451497762,0.409729,102310.0,102300.0,0.04893]
[1737451499962,0.410729,102310.0,102300.0,0.04893]
[1737451500760,0.002,102310.0,102300.0,0.29981435]
[1737451501063,0.002,102310.0,102300.0,0.39756128]
[1737451502862,0.002,102310.0,102300.0,0.75836128]
[1737451503862,0.002,102310.0,102300.0,0.63307693]
[1737451504662,0.002,102310.0,102300.0,0.68117124]
[1737451505255,0.002,102310.0,102300.0,0.32037124]
[1737451505467,0.411727,102310.0,102300.0,0.17453]
[1737451505870,0.411727,102310.0,102300.0,0.04893]
[1737451506060,0.048931,102300.0,102290.0,0.09171917]
[1737451506264,0.409731,102300.0,102290.0,0.048936]
[1737451507263,0.410731,102300.0,102290.0,0.048936]
[1737451507665,0.048936,102290.0,102280.0,0.17402894]
[1737451507867,0.409736,102290.0,102280.0,0.22222692]
[1737451508276,0.409736,102290.0,102280.0,0.23175691]
[1737451509373,0.3608,102290.0,102280.0,0.23175691]
[1737451509579,0.3608,102290.0,102280.0,0.18355893]
[1737451509971,0.3608,102290.0,102280.0,0.23179335]
[1737451510167,0.3618,102290.0,102280.0,0.23179335]
[1737451510875,0.410736,102290.0,102280.0,0.22226336]
[1737451511070,0.59952035,102290.0,102280.0,0.00012359]
[1737451512077,0.59952035,102290.0,102280.0,0.01542008]
[1737451514078,0.59952035,102290.0,102280.0,0.00012359]
[1737451514973,0.59952035,102290.0,102260.0,0.2201808]
[1737451514974,0.048946,102270.0,102260.0,0.2201808]
[1737451515176,0.770546,102270.0,102260.0,0.110948]
[1737451515971,0.77065138,102270.0,102260.0,0.048948]
[1737451516179,0.89593573,102270.0,102260.0,0.048948]
[1737451516380,0.89693573,102270.0,102260.0,0.048948]
[1737451517372,0.77165138,102270.0,102260.0,0.048948]
[1737451517771,0.04895,102260.0,102250.0,0.11763637]
[1737451517977,0.04895,102260.0,102250.0,0.16588124]
[1737451518178,0.04895,102260.0,102250.0,0.11763637]
[1737451519472,0.04895,102260.0,102240.0,0.44473195]
[1737451519670,0.04895,102260.0,102240.0,0.49299917]
[1737451519875,0.04895,102260.0,102250.0,0.048954]
[1737451520074,0.04995,102260.0,102250.0,0.048954]
[1737451520379,0.53603435,102260.0,102250.0,0.048954]
[1737451520578,0.048955,102250.0,102240.0,0.11002377]
[1737451520771,0.409755,102250.0,102240.0,0.11002377]
[1737451520972,0.409755,102250.0,102240.0,0.1815009]
[1737451521682,0.410755,102250.0,102240.0,0.1815009]
[1737451522373,0.410755,102250.0,102240.0,0.20008998]
[1737451522575,0.001,102250.0,102240.0,0.14397368]
[1737451522769,0.001,102250.0,102240.0,0.25333068]
[1737451523176,0.001,102250.0,102240.0,0.30158634]
[1737451523374,0.001,102250.0,102240.0,0.25333068]
[1737451523569,0.001,102250.0,102240.0,0.61413068]
[1737451523774,0.001,102250.0,102240.0,0.66237175]
[1737451523985,0.001,102250.0,102240.0,0.59550681]
[1737451524181,0.049955,102250.0,102240.0,0.23470681]
[1737451524482,0.22454149,102250.0,102240.0,0.23470681]
[1737451524683,0.22454149,102250.0,102240.0,0.19411794]
[1737451525782,0.58534149,102250.0,102240.0,0.1170092]
[1737451525980,0.65220643,102250.0,102230.0,0.04907236]
[1737451526185,0.47166,102240.0,102230.0,0.04907236]
[1737451526478,0.47166,102240.0,102230.0,0.14687665]
[1737451526976,0.3608,102240.0,102230.0,0.21374159]
[1737451527876,0.58434249,102250.0,102230.0,0.57454159]
[1737451528077,0.58434249,102250.0,102240.0,0.11582494]
[1737451528284,0.17458649,102250.0,102240.0,0.11582494]
[1737451528484,0.17458649,102250.0,102240.0,0.24122494]
[1737451528684,0.17458649,102250.0,102240.0,0.3390388]
[1737451529182,0.53538649,102250.0,102240.0,0.27217386]
[1737451529378,0.58434149,102250.0,102240.0,0.27217386]
[1737451529578,0.53538649,102250.0,102240.0,0.27217386]
[1737451530072,0.58434149,102250.0,102240.0,0.17436]
[1737451530279,0.65120643,102250.0,102240.0,0.04896]
[1737451530481,0.65220643,102250.0,102240.0,0.04896]
[1737451530785,0.58534149,102250.0,102240.0,0.04896]
[1737451531097,0.58434149,102250.0,102240.0,0.04896]
[1737451531284,0.67254449,102250.0,102240.0,0.04896]
[1737451531479,0.73940943,102250.0,102240.0,0.04896]
[1737451534205,0.67254449,102250.0,102240.0,0.04896]
[1737451534387,0.62358949,102250.0,102240.0,0.21362923]
[1737451534601,0.26278949,102250.0,102240.0,0.21362923]
[1737451534793,0.19539361,102250.0,102240.0,0.04896]
[1737451535001,0.20176087,102250.0,102240.0,0.04896]
[1737451535498,0.56256087,102250.0,102240.0,0.04896]
[1737451535994,0.56256087,102250.0,102230.0,0.04330272]
[1737451536198,0.56256087,102250.0,102240.0,0.04896]
[1737451537300,0.56156087,102250.0,102240.0,0.04896]
[1737451537499,0.56256087,102250.0,102240.0,0.04896]
[1737451538100,0.59170875,102250.0,102240.0,0.04896]
[1737451538396,0.23090875,102250.0,102240.0,0.04945399]
[1737451538910,0.59170875,102250.0,102240.0,0.00049399]
[1737451539305,0.59170875,102250.0,102240.0,0.04945399]
[1737451540005,0.54275375,102250.0,102240.0,0.11631893]
[1737451540304,0.54275375,102250.0,102240.0,0.28098816]
[1737451540305,0.17558649,102250.0,102240.0,0.28098816]
[1737451540505,0.17458649,102250.0,102240.0,0.32928584]
[1737451540707,0.17558649,102250.0,102240.0,0.2624209]
[1737451542401,0.17558649,102250.0,102240.0,0.19555596]
[1737451542608,0.65220643,102250.0,102240.0,0.04945399]
[1737451542798,0.64924149,102250.0,102240.0,0.04945399]
[1737451543001,0.28844149,102250.0,102240.0,0.04945399]
[1737451543398,0.22454149,102250.0,102240.0,0.21412322]
[1737451543799,0.22454149,102250.0,102240.0,0.14725828]
[1737451544403,0.65220643,102250.0,102240.0,0.04945399]
[1737451544598,0.65220643,102250.0,102240.0,0.09228852]
[1737451545106,0.58534149,102250.0,102240.0,0.04945399]
[1737451548808,0.410755,102250.0,102240.0,0.04945399]
[1737451549199,0.410755,102250.0,102240.0,0.09790318]
[1737451550011,0.47761994,102250.0,102240.0,0.00049399]
[1737451550812,0.47761994,102250.0,102240.0,0.04945399]
[1737451551407,0.410755,102250.0,102240.0,0.04945399]
[1737451553105,0.47761994,102250.0,102240.0,0.04945399]
[1737451553309,0.48382646,102250.0,102240.0,0.04945399]
[1737451554611,0.48382646,102250.0,102240.0,0.09792621]
[1737451554805,0.48382646,102250.0,102240.0,0.04945399]
[1737451555608,0.55077376,102250.0,102240.0,0.00049399]
[1737451555812,0.04896,102240.0,102230.0,0.04284212]
[1737451556002,0.53792494,102240.0,102230.0,0.09132355]
[1737451556201,0.47106,102240.0,102230.0,0.14028855]
[1737451557015,0.47206,102240.0,102230.0,0.1745659]
[1737451557209,0.47206,102240.0,102230.0,0.14028855]
[1737451557812,0.47206,102240.0,102230.0,0.09744643]
[1737451558317,0.53892494,102240.0,102230.0,0.09744643]
[1737451558515,0.47206,102240.0,102230.0,0.09744643]
[1737451559416,0.11126,102240.0,102230.0,0.09744643]
[1737451560914,0.11126,102240.0,102230.0,0.1317228]
[1737451561318,0.11126,102240.0,102230.0,0.17456827]
[1737451562206,0.11126,102240.0,102230.0,0.1402919]
[1737451562719,0.11126,102240.0,102230.0,0.09744643]
[1737451563915,0.53892494,102240.0,102230.0,0.09132422]
[1737451564116,0.53892494,102240.0,102230.0,0.04284279]
[1737451564416,0.048965,102230.0,102220.0,0.048966]
[1737451564620,0.409765,102230.0,102220.0,0.09742936]
[1737451565120,0.048965,102230.0,102220.0,0.09742936]
[1737451565322,0.409765,102230.0,102220.0,0.09742936]
[1737451566726,0.47662994,102230.0,102220.0,0.04846336]
[1737451567023,0.04897,102220.0,102210.0,0.28382222]
[1737451567213,0.40977,102220.0,102210.0,0.28382222]
[1737451567413,0.40977,102220.0,102210.0,0.33226268]
[1737451568226,0.47671551,102220.0,102210.0,0.34756736]
[1737451568426,0.47771551,102220.0,102210.0,0.2991269]
[1737451568720,0.41085057,102220.0,102210.0,0.2991269]
[1737451568926,0.41085057,102220.0,102210.0,0.28382222]
[1737451569519,0.41185057,102220.0,102210.0,0.28482222]
[1737451570222,0.47871551,102220.0,102210.0,0.23438413]
[1737451570620,0.048974,102210.0,102200.0,0.39172755]
[1737451570820,0.048979,102200.0,102190.0,0.41030668]
[1737451571020,0.47664394,102200.0,102190.0,0.41030668]
[1737451571223,0.409779,102200.0,102190.0,0.41030668]
[1737451571426,0.409779,102200.0,102190.0,0.45929068]
[1737451571624,0.40984943,102200.0,102190.0,0.58259068]
[1737451572428,0.47671437,102200.0,102190.0,0.41030668]
[1737451573528,0.47771437,102200.0,102190.0,0.41030668]
[1737451573940,0.66001437,102200.0,102190.0,0.41030668]
[1737451576328,0.048989,102180.0,102170.0,0.10659]
[1737451576528,0.770589,102180.0,102170.0,0.10659]
[1737451577321,0.771589,102180.0,102170.0,0.10659]
[1737451577525,0.771589,102180.0,102170.0,0.13108897]
[1737451577723,0.772589,102180.0,102170.0,0.13108897]
[1737451580339,0.772589,102180.0,102160.0,0.2144907]
[1737451580340,0.048994,102170.0,102160.0,0.18022785]
[1737451580635,0.409794,102170.0,102160.0,0.23187061]
[1737451581030,0.409794,102170.0,102160.0,0.25637022]
[1737451581832,0.55670512,102180.0,102170.0,0.048994]
[1737451582032,0.55570512,102180.0,102170.0,0.11585894]
[1737451582234,0.55570512,102180.0,102170.0,0.048994]
[1737451583236,0.55570512,102180.0,102170.0,0.06430484]
[1737451584331,0.19490512,102180.0,102170.0,0.13116978]
[1737451584626,0.19490512,102180.0,102170.0,0.08217578]
[1737451584832,0.19490512,102180.0,102170.0,0.11585894]
[1737451585423,0.55570512,102180.0,102170.0,0.048994]
[1737451587638,0.52640592,102180.0,102170.0,0.048994]
[1737451588736,0.52640592,102180.0,102170.0,0.11585894]
[1737451588938,0.11661492,102180.0,102170.0,0.57453023]
[1737451589132,0.36866592,102200.0,102170.0,0.57453023]
[1737451589133,7.043e-05,102200.0,102170.0,0.99038417]
[1737451589336,0.20405753,102210.0,102200.0,0.048979]
[1737451589637,0.20405753,102210.0,102200.0,0.47664394]
[1737451589933,0.20405753,102210.0,102200.0,0.75091523]
[1737451590442,0.20414417,102210.0,102200.0,0.75091523]
[1737451590636,0.10784417,102210.0,102200.0,0.75091523]
[1737451590836,0.2332086,102220.0,102210.0,0.048974]
[1737451591036,0.2332086,102220.0,102210.0,0.54350388]
[1737451591232,0.26298259,102230.0,102210.0,0.47663894]
[1737451591439,0.73961353,102230.0,102220.0,0.04897]
[1737451591937,0.68094871,102230.0,102220.0,0.04897]
[1737451592343,0.61408377,102230.0,102220.0,0.04897]
[1737451592848,0.20431777,102230.0,102220.0,0.14679342]
[1737451593040,0.25328277,102230.0,102210.0,0.10249026]
[1737451593241,0.31498277,102230.0,102220.0,0.04897]
[1737451593742,0.25428277,102230.0,102220.0,0.04897]
[1737451594336,0.048972,102220.0,102210.0,0.048974]
[1737451594637,0.409772,102220.0,102210.0,0.048974]
[1737451594835,0.470272,102220.0,102210.0,0.048974]
[1737451595037,0.109472,102220.0,102210.0,0.048974]
[1737451595338,0.470272,102220.0,102210.0,0.048974]
[1737451595540,0.53713694,102220.0,102190.0,0.53565722]